Workbook

Sheet Summary
H2: After-tax | I2: After-tax
H3: Sponsor | I3: Tax Investor | K3: Sponsor with ITC Transfer
C4: Pre-tax IRR | D4: =E4/100 -> 0.05 | E4: 5 | G4: IRR | H4: ='Simple Model'!E99 -> 0.113656443 | I4: ='Simple Model'!E94 -> 0.113656443 | K4: ='Simple Model'!E113 -> 0.08033883183
C6: FMV Write-up | D6: =E6/100 -> 0.25 | E6: 25
C8: ITC Transfer Percent | D8: =E8/100 -> 0.9 | E8: 90
C10: Contribution Ratio | D10: =E10/100 -> 1 | E10: 100
C12: Contribution Ratio | D12: ='Simple Model'!E88 -> 1.359730835

Sheet Simple Model
B3: Pre-tax Pre-Leverage
E4: 0 | F4: 1 | G4: 2 | H4: 3 | I4: 4 | J4: 5 | K4: 6 | L4: 7 | M4: 8 | N4: 9 | O4: 10 | P4: 11 | Q4: 12 | R4: 13 | S4: 14 | T4: 15 | U4: 16 | V4: 17 | W4: 18 | X4: 19 | Y4: 20 | Z4: 21 | AA4: 22 | AB4: 23 | AC4: 24 | AD4: 25 | AE4: 26 | AF4: 27 | AG4: 28 | AH4: 29 | AI4: 30
D5: EBITDA | F5: 65.05143508 | G5: =$F$5 -> 65.05143508 | H5: =$F$5 -> 65.05143508 | I5: 65.05143508 | J5: 65.05143508 | K5: 65.05143508 | L5: 65.05143508 | M5: 65.05143508 | N5: 65.05143508 | O5: 65.05143508 | P5: 65.05143508 | Q5: 65.05143508 | R5: 65.05143508 | S5: 65.05143508 | T5: 65.05143508 | U5: 65.05143508 | V5: 65.05143508 | W5: 65.05143508 | X5: 65.05143508 | Y5: 65.05143508 | Z5: 65.05143508 | AA5: 65.05143508 | AB5: 65.05143508 | AC5: 65.05143508 | AD5: 65.05143508 | AE5: 65.05143508 | AF5: 65.05143508 | AG5: 65.05143508 | AH5: 65.05143508 | AI5: 65.05143508
D6: Cap Exp | E6: 1000
D7: Pre-tax Unleverd CF | E7: =E5-E6 -> -1000 | F7: =F5-F6 -> 65.05143508 | G7: 65.05143508 | H7: 65.05143508 | I7: 65.05143508 | J7: 65.05143508 | K7: 65.05143508 | L7: 65.05143508 | M7: 65.05143508 | N7: 65.05143508 | O7: 65.05143508 | P7: 65.05143508 | Q7: 65.05143508 | R7: 65.05143508 | S7: 65.05143508 | T7: 65.05143508 | U7: 65.05143508 | V7: 65.05143508 | W7: 65.05143508 | X7: 65.05143508 | Y7: 65.05143508 | Z7: 65.05143508 | AA7: 65.05143508 | AB7: 65.05143508 | AC7: 65.05143508 | AD7: 65.05143508 | AE7: 65.05143508 | AF7: 65.05143508 | AG7: 65.05143508 | AH7: 65.05143508 | AI7: 65.05143508
D9: Pre-tax Unleved IRR | E9: =IRR(E7:AI7) -> 0.05
D10: IRR | E10: =Summary!D4 -> 0.05
D11: NPV | E11: =NPV(E10,E7:AI7) -> -3.552713679e-13 | F11: NPV 1
B13: After-tax with Full Utilization
D14: Fair Value Write-up | E14: =Summary!D6 -> 0.25
D15: Base for ITC | E15: =E6*(1+E14) -> 1250
D17: ITC Rate | E17: 0.3
D18: Total ITC | E18: =E15*E17 -> 375
D20: Basis Reduction | E20: 0.5
D21: Tax Base | E21: =E18*E20 -> 187.5
D23: Tax Base | E23: =E15-E21 -> 1062.5
D25: Bonus Depreciation | E25: 0.6
D26: Bonus Amount | E26: =E25*E23 -> 637.5 | F26: =E26 -> 637.5
D28: Remaining Base | E28: =E23-E26 -> 425
E29: 0 | F29: 1 | G29: 2 | H29: 3 | I29: 4 | J29: 5 | K29: 6 | L29: 7 | M29: 8 | N29: 9 | O29: 10
D30: MACRS Rate | F30: =IFERROR(VDB(1,0,5,E29,F29),0) -> 0.4 | G30: =IFERROR(VDB(1,0,5,F29,G29),0) -> 0.24 | H30: 0.144 | I30: 0.108 | J30: 0.108 | K30: 0 | L30: 0 | M30: 0 | N30: 0 | O30: 0
D32: Depreciation Rate | E32: =LOOKUP(E4,29:29,30:30) -> 0 | F32: =LOOKUP(F4,29:29,30:30) -> 0.4 | G32: 0.24 | H32: 0.144 | I32: 0.108 | J32: 0.108 | K32: 0 | L32: 0 | M32: 0 | N32: 0 | O32: 0 | P32: 0 | Q32: 0 | R32: 0 | S32: 0 | T32: 0 | U32: 0 | V32: 0 | W32: 0 | X32: 0 | Y32: 0 | Z32: 0 | AA32: 0 | AB32: 0 | AC32: 0 | AD32: 0 | AE32: 0 | AF32: 0 | AG32: 0 | AH32: 0 | AI32: 0
D33: Depreciation Amount | E33: =E28 -> 425 | F33: =$E$33*F32 -> 170 | G33: =$E$33*G32 -> 102 | H33: 61.2 | I33: 45.9 | J33: 45.9 | K33: 0 | L33: 0 | M33: 0 | N33: 0 | O33: 0 | P33: =$E$33*P32 -> 0 | Q33: =$E$33*Q32 -> 0 | R33: =$E$33*R32 -> 0 | S33: =$E$33*S32 -> 0 | T33: =$E$33*T32 -> 0 | U33: =$E$33*U32 -> 0 | V33: =$E$33*V32 -> 0 | W33: =$E$33*W32 -> 0 | X33: =$E$33*X32 -> 0 | Y33: =$E$33*Y32 -> 0 | Z33: =$E$33*Z32 -> 0 | AA33: =$E$33*AA32 -> 0 | AB33: =$E$33*AB32 -> 0 | AC33: =$E$33*AC32 -> 0 | AD33: =$E$33*AD32 -> 0 | AE33: =$E$33*AE32 -> 0 | AF33: =$E$33*AF32 -> 0 | AG33: =$E$33*AG32 -> 0 | AH33: =$E$33*AH32 -> 0 | AI33: =$E$33*AI32 -> 0
D35: Total with Bonus | F35: =F26+F33 -> 807.5 | G35: =G26+G33 -> 102 | H35: 61.2 | I35: 45.9 | J35: 45.9 | K35: 0 | L35: 0 | M35: 0 | N35: 0 | O35: 0 | P35: 0 | Q35: 0 | R35: 0 | S35: 0 | T35: 0 | U35: 0 | V35: 0 | W35: 0 | X35: 0 | Y35: 0 | Z35: 0 | AA35: 0 | AB35: 0 | AC35: 0 | AD35: 0 | AE35: 0 | AF35: 0 | AG35: 0 | AH35: 0 | AI35: 0
D37: EBIT | F37: =F5-F35 -> -742.4485649 | G37: =G5-G35 -> -36.94856492 | H37: 3.85143508 | I37: 19.15143508 | J37: 19.15143508 | K37: 65.05143508 | L37: 65.05143508 | M37: 65.05143508 | N37: 65.05143508 | O37: 65.05143508 | P37: 65.05143508 | Q37: 65.05143508 | R37: 65.05143508 | S37: 65.05143508 | T37: 65.05143508 | U37: 65.05143508 | V37: 65.05143508 | W37: 65.05143508 | X37: 65.05143508 | Y37: 65.05143508 | Z37: 65.05143508 | AA37: 65.05143508 | AB37: 65.05143508 | AC37: 65.05143508 | AD37: 65.05143508 | AE37: 65.05143508 | AF37: 65.05143508 | AG37: 65.05143508 | AH37: 65.05143508 | AI37: 65.05143508
D38: Tax Rate | E38: 0.21 | F38: =$E$38 -> 0.21 | G38: =$E$38 -> 0.21 | H38: 0.21 | I38: 0.21 | J38: 0.21 | K38: 0.21 | L38: 0.21 | M38: 0.21 | N38: 0.21 | O38: 0.21 | P38: 0.21 | Q38: 0.21 | R38: 0.21 | S38: 0.21 | T38: 0.21 | U38: 0.21 | V38: 0.21 | W38: 0.21 | X38: 0.21 | Y38: 0.21 | Z38: 0.21 | AA38: 0.21 | AB38: 0.21 | AC38: 0.21 | AD38: 0.21 | AE38: 0.21 | AF38: 0.21 | AG38: 0.21 | AH38: 0.21 | AI38: 0.21
D39: Taxes with Full Benefit | F39: =F37*F38 -> -155.9141986 | G39: =G37*G38 -> -7.759198633 | H39: 0.8088013669 | I39: 4.021801367 | J39: 4.021801367 | K39: 13.66080137 | L39: 13.66080137 | M39: 13.66080137 | N39: 13.66080137 | O39: 13.66080137 | P39: 13.66080137 | Q39: 13.66080137 | R39: 13.66080137 | S39: 13.66080137 | T39: 13.66080137 | U39: 13.66080137 | V39: 13.66080137 | W39: 13.66080137 | X39: 13.66080137 | Y39: 13.66080137 | Z39: 13.66080137 | AA39: 13.66080137 | AB39: 13.66080137 | AC39: 13.66080137 | AD39: 13.66080137 | AE39: 13.66080137 | AF39: 13.66080137 | AG39: 13.66080137 | AH39: 13.66080137 | AI39: 13.66080137
D40: ITC | E40: =-E18 -> -375
D41: Total Tax with ITC | E41: =E40+E39 -> -375 | F41: =F40+F39 -> -155.9141986 | G41: -7.759198633 | H41: 0.8088013669 | I41: 4.021801367 | J41: 4.021801367 | K41: 13.66080137 | L41: 13.66080137 | M41: 13.66080137 | N41: 13.66080137 | O41: 13.66080137 | P41: 13.66080137 | Q41: 13.66080137 | R41: 13.66080137 | S41: 13.66080137 | T41: 13.66080137 | U41: 13.66080137 | V41: 13.66080137 | W41: 13.66080137 | X41: 13.66080137 | Y41: 13.66080137 | Z41: 13.66080137 | AA41: 13.66080137 | AB41: 13.66080137 | AC41: 13.66080137 | AD41: 13.66080137 | AE41: 13.66080137 | AF41: 13.66080137 | AG41: 13.66080137 | AH41: 13.66080137 | AI41: 13.66080137
D43: ITC Used | E43: 1
D45: Cash Flow After Tax | E45: =E7+E18*E43 -> -625 | F45: =F5-F39 -> 220.9656337 | G45: =G5-G39 -> 72.81063371 | H45: =H5-H39 -> 64.24263371 | I45: =I5-I39 -> 61.02963371 | J45: =J5-J39 -> 61.02963371 | K45: =K5-K39 -> 51.39063371 | L45: =L5-L39 -> 51.39063371 | M45: =M5-M39 -> 51.39063371 | N45: =N5-N39 -> 51.39063371 | O45: =O5-O39 -> 51.39063371 | P45: =P5-P39 -> 51.39063371 | Q45: =Q5-Q39 -> 51.39063371 | R45: =R5-R39 -> 51.39063371 | S45: =S5-S39 -> 51.39063371 | T45: =T5-T39 -> 51.39063371 | U45: =U5-U39 -> 51.39063371 | V45: =V5-V39 -> 51.39063371 | W45: =W5-W39 -> 51.39063371 | X45: =X5-X39 -> 51.39063371 | Y45: =Y5-Y39 -> 51.39063371 | Z45: =Z5-Z39 -> 51.39063371 | AA45: =AA5-AA39 -> 51.39063371 | AB45: =AB5-AB39 -> 51.39063371 | AC45: =AC5-AC39 -> 51.39063371 | AD45: =AD5-AD39 -> 51.39063371 | AE45: =AE5-AE39 -> 51.39063371 | AF45: =AF5-AF39 -> 51.39063371 | AG45: =AG5-AG39 -> 51.39063371 | AH45: =AH5-AH39 -> 51.39063371 | AI45: =AI5-AI39 -> 51.39063371
D47: IRR After Tax | E47: =IRR(E45:AI45) -> 0.113656443
B49: After-tax with NOL
D51: Taxes Before NOL | E51: =E41 -> -375 | F51: =F41 -> -155.9141986 | G51: -7.759198633 | H51: 0.8088013669 | I51: 4.021801367 | J51: 4.021801367 | K51: 13.66080137 | L51: 13.66080137 | M51: 13.66080137 | N51: 13.66080137 | O51: 13.66080137 | P51: 13.66080137 | Q51: 13.66080137 | R51: 13.66080137 | S51: 13.66080137 | T51: 13.66080137 | U51: 13.66080137 | V51: 13.66080137 | W51: 13.66080137 | X51: 13.66080137 | Y51: 13.66080137 | Z51: 13.66080137 | AA51: 13.66080137 | AB51: 13.66080137 | AC51: 13.66080137 | AD51: 13.66080137 | AE51: 13.66080137 | AF51: 13.66080137 | AG51: 13.66080137 | AH51: 13.66080137 | AI51: 13.66080137
D53: NOL Balance | F53: =E56 -> 375 | G53: =F56 -> 530.9141986 | H53: 538.6733973 | I53: 537.8645959 | J53: 533.8427945 | K53: 529.8209932 | L53: 516.1601918 | M53: 502.4993904 | N53: 488.8385891 | O53: 475.1777877 | P53: 461.5169863 | Q53: 447.856185 | R53: 434.1953836 | S53: 420.5345822 | T53: 406.8737809 | U53: 393.2129795 | V53: 379.5521781 | W53: 365.8913768 | X53: 352.2305754 | Y53: 338.569774 | Z53: 324.9089727 | AA53: 311.2481713 | AB53: 297.5873699 | AC53: 283.9265686 | AD53: 270.2657672 | AE53: 256.6049658 | AF53: 242.9441645 | AG53: 229.2833631 | AH53: 215.6225617 | AI53: 201.9617604
D54: Add: NOL Carried Forward | E54: =MAX(-E51,0) -> 375 | F54: =MAX(-F51,0) -> 155.9141986 | G54: 7.759198633 | H54: 0 | I54: 0 | J54: 0 | K54: 0 | L54: 0 | M54: 0 | N54: 0 | O54: 0 | P54: 0 | Q54: 0 | R54: 0 | S54: 0 | T54: 0 | U54: 0 | V54: 0 | W54: 0 | X54: 0 | Y54: 0 | Z54: 0 | AA54: 0 | AB54: 0 | AC54: 0 | AD54: 0 | AE54: 0 | AF54: 0 | AG54: 0 | AH54: 0 | AI54: 0
D55: Less: NOL Use Later | E55: =MAX(E51,0) -> 0 | F55: =MAX(F51,0) -> 0 | G55: 0 | H55: 0.8088013669 | I55: 4.021801367 | J55: 4.021801367 | K55: 13.66080137 | L55: 13.66080137 | M55: 13.66080137 | N55: 13.66080137 | O55: 13.66080137 | P55: 13.66080137 | Q55: 13.66080137 | R55: 13.66080137 | S55: 13.66080137 | T55: 13.66080137 | U55: 13.66080137 | V55: 13.66080137 | W55: 13.66080137 | X55: 13.66080137 | Y55: 13.66080137 | Z55: 13.66080137 | AA55: 13.66080137 | AB55: 13.66080137 | AC55: 13.66080137 | AD55: 13.66080137 | AE55: 13.66080137 | AF55: 13.66080137 | AG55: 13.66080137 | AH55: 13.66080137 | AI55: 13.66080137
D56: NOL Closing Balance | E56: =E53+E54-E55 -> 375 | F56: =F53+F54-F55 -> 530.9141986 | G56: 538.6733973 | H56: 537.8645959 | I56: 533.8427945 | J56: 529.8209932 | K56: 516.1601918 | L56: 502.4993904 | M56: 488.8385891 | N56: 475.1777877 | O56: 461.5169863 | P56: 447.856185 | Q56: 434.1953836 | R56: 420.5345822 | S56: 406.8737809 | T56: 393.2129795 | U56: 379.5521781 | V56: 365.8913768 | W56: 352.2305754 | X56: 338.569774 | Y56: 324.9089727 | Z56: 311.2481713 | AA56: 297.5873699 | AB56: 283.9265686 | AC56: 270.2657672 | AD56: 256.6049658 | AE56: 242.9441645 | AF56: 229.2833631 | AG56: 215.6225617 | AH56: 201.9617604 | AI56: 188.300959
D58: Taxes Paid | E58: =E51+E54-E55 -> 0 | F58: =F51+F54-F55 -> 0 | G58: 0 | H58: 0 | I58: 0 | J58: 0 | K58: 0 | L58: 0 | M58: 0 | N58: 0 | O58: 0 | P58: 0 | Q58: 0 | R58: 0 | S58: 0 | T58: 0 | U58: 0 | V58: 0 | W58: 0 | X58: 0 | Y58: 0 | Z58: 0 | AA58: 0 | AB58: 0 | AC58: 0 | AD58: 0 | AE58: 0 | AF58: 0 | AG58: 0 | AH58: 0 | AI58: 0
D60: Cash Flow - Pre-tax | E60: =E7 -> -1000 | F60: =F7 -> 65.05143508 | G60: 65.05143508 | H60: 65.05143508 | I60: 65.05143508 | J60: 65.05143508 | K60: 65.05143508 | L60: 65.05143508 | M60: 65.05143508 | N60: 65.05143508 | O60: 65.05143508 | P60: 65.05143508 | Q60: 65.05143508 | R60: 65.05143508 | S60: 65.05143508 | T60: 65.05143508 | U60: 65.05143508 | V60: 65.05143508 | W60: 65.05143508 | X60: 65.05143508 | Y60: 65.05143508 | Z60: 65.05143508 | AA60: 65.05143508 | AB60: 65.05143508 | AC60: 65.05143508 | AD60: 65.05143508 | AE60: 65.05143508 | AF60: 65.05143508 | AG60: 65.05143508 | AH60: 65.05143508 | AI60: 65.05143508
D61: Less: Taxes Paide | E61: =E58 -> 0 | F61: =F58 -> 0 | G61: 0 | H61: 0 | I61: 0 | J61: 0 | K61: 0 | L61: 0 | M61: 0 | N61: 0 | O61: 0 | P61: 0 | Q61: 0 | R61: 0 | S61: 0 | T61: 0 | U61: 0 | V61: 0 | W61: 0 | X61: 0 | Y61: 0 | Z61: 0 | AA61: 0 | AB61: 0 | AC61: 0 | AD61: 0 | AE61: 0 | AF61: 0 | AG61: 0 | AH61: 0 | AI61: 0
D62: After-tax Cash Flow | E62: =E60-E61 -> -1000 | F62: =F60-F61 -> 65.05143508 | G62: 65.05143508 | H62: 65.05143508 | I62: 65.05143508 | J62: 65.05143508 | K62: 65.05143508 | L62: 65.05143508 | M62: 65.05143508 | N62: 65.05143508 | O62: 65.05143508 | P62: 65.05143508 | Q62: 65.05143508 | R62: 65.05143508 | S62: 65.05143508 | T62: 65.05143508 | U62: 65.05143508 | V62: 65.05143508 | W62: 65.05143508 | X62: 65.05143508 | Y62: 65.05143508 | Z62: 65.05143508 | AA62: 65.05143508 | AB62: 65.05143508 | AC62: 65.05143508 | AD62: 65.05143508 | AE62: 65.05143508 | AF62: 65.05143508 | AG62: 65.05143508 | AH62: 65.05143508 | AI62: 65.05143508
D64: IRR | E64: =IRR(E62:AI62) -> 0.05
B66: Partnership Theory
C67: Flip Period | E67: 5 | F67: =F4<=$E$67 -> TRUE | G67: =G4<=$E$67 -> TRUE | H67: TRUE | I67: TRUE | J67: TRUE | K67: FALSE | L67: FALSE | M67: FALSE | N67: FALSE | O67: FALSE | P67: FALSE | Q67: FALSE | R67: FALSE | S67: FALSE | T67: FALSE | U67: FALSE | V67: FALSE | W67: FALSE | X67: FALSE | Y67: FALSE | Z67: FALSE | AA67: FALSE | AB67: FALSE | AC67: FALSE | AD67: FALSE | AE67: FALSE | AF67: FALSE | AG67: FALSE | AH67: FALSE | AI67: FALSE
C69: Tax Investor
D70: Income Percent Pre | E70: 0.99 | F70: =$E$70*F$67*F37 -> -735.0240793 | G70: =$E$70*G$67*G37 -> -36.57907927 | H70: 3.812920729 | I70: 18.95992073 | J70: 18.95992073 | K70: 0 | L70: 0 | M70: 0 | N70: 0 | O70: 0 | P70: 0 | Q70: 0 | R70: 0 | S70: 0 | T70: 0 | U70: 0 | V70: 0 | W70: 0 | X70: 0 | Y70: 0 | Z70: 0 | AA70: 0 | AB70: 0 | AC70: 0 | AD70: 0 | AE70: 0 | AF70: 0 | AG70: 0 | AH70: 0 | AI70: 0
D71: Income Percent Post | E71: 0.01 | F71: =NOT(F67)*$E$71*F37 -> 0 | G71: =NOT(G67)*$E$71*G37 -> 0 | H71: 0 | I71: 0 | J71: 0 | K71: 0.6505143508 | L71: 0.6505143508 | M71: 0.6505143508 | N71: 0.6505143508 | O71: 0.6505143508 | P71: 0.6505143508 | Q71: 0.6505143508 | R71: 0.6505143508 | S71: 0.6505143508 | T71: 0.6505143508 | U71: 0.6505143508 | V71: 0.6505143508 | W71: 0.6505143508 | X71: 0.6505143508 | Y71: 0.6505143508 | Z71: 0.6505143508 | AA71: 0.6505143508 | AB71: 0.6505143508 | AC71: 0.6505143508 | AD71: 0.6505143508 | AE71: 0.6505143508 | AF71: 0.6505143508 | AG71: 0.6505143508 | AH71: 0.6505143508 | AI71: 0.6505143508
D73: Cash Percent Pre | E73: 0 | F73: =$E73*F$5*F$67 -> 0 | G73: =$E73*G$5*G$67 -> 0 | H73: =$E73*H$5*H$67 -> 0 | I73: =$E73*I$5*I$67 -> 0 | J73: =$E73*J$5*J$67 -> 0 | K73: =$E73*K$5*K$67 -> 0 | L73: =$E73*L$5*L$67 -> 0 | M73: =$E73*M$5*M$67 -> 0 | N73: =$E73*N$5*N$67 -> 0 | O73: =$E73*O$5*O$67 -> 0 | P73: =$E73*P$5*P$67 -> 0 | Q73: =$E73*Q$5*Q$67 -> 0 | R73: =$E73*R$5*R$67 -> 0 | S73: =$E73*S$5*S$67 -> 0 | T73: =$E73*T$5*T$67 -> 0 | U73: =$E73*U$5*U$67 -> 0 | V73: =$E73*V$5*V$67 -> 0 | W73: =$E73*W$5*W$67 -> 0 | X73: =$E73*X$5*X$67 -> 0 | Y73: =$E73*Y$5*Y$67 -> 0 | Z73: =$E73*Z$5*Z$67 -> 0 | AA73: =$E73*AA$5*AA$67 -> 0 | AB73: =$E73*AB$5*AB$67 -> 0 | AC73: =$E73*AC$5*AC$67 -> 0 | AD73: =$E73*AD$5*AD$67 -> 0 | AE73: =$E73*AE$5*AE$67 -> 0 | AF73: =$E73*AF$5*AF$67 -> 0 | AG73: =$E73*AG$5*AG$67 -> 0 | AH73: =$E73*AH$5*AH$67 -> 0 | AI73: =$E73*AI$5*AI$67 -> 0
D74: Cash Percent Post | E74: 0 | F74: =$E74*F$5*F$67 -> 0 | G74: =$E74*G$5*G$67 -> 0 | H74: =$E74*H$5*H$67 -> 0 | I74: =$E74*I$5*I$67 -> 0 | J74: =$E74*J$5*J$67 -> 0 | K74: =$E74*K$5*K$67 -> 0 | L74: =$E74*L$5*L$67 -> 0 | M74: =$E74*M$5*M$67 -> 0 | N74: =$E74*N$5*N$67 -> 0 | O74: =$E74*O$5*O$67 -> 0 | P74: =$E74*P$5*P$67 -> 0 | Q74: =$E74*Q$5*Q$67 -> 0 | R74: =$E74*R$5*R$67 -> 0 | S74: =$E74*S$5*S$67 -> 0 | T74: =$E74*T$5*T$67 -> 0 | U74: =$E74*U$5*U$67 -> 0 | V74: =$E74*V$5*V$67 -> 0 | W74: =$E74*W$5*W$67 -> 0 | X74: =$E74*X$5*X$67 -> 0 | Y74: =$E74*Y$5*Y$67 -> 0 | Z74: =$E74*Z$5*Z$67 -> 0 | AA74: =$E74*AA$5*AA$67 -> 0 | AB74: =$E74*AB$5*AB$67 -> 0 | AC74: =$E74*AC$5*AC$67 -> 0 | AD74: =$E74*AD$5*AD$67 -> 0 | AE74: =$E74*AE$5*AE$67 -> 0 | AF74: =$E74*AF$5*AF$67 -> 0 | AG74: =$E74*AG$5*AG$67 -> 0 | AH74: =$E74*AH$5*AH$67 -> 0 | AI74: =$E74*AI$5*AI$67 -> 0
C76: Sponsor
D77: Income Percent Pre | E77: =1-E70 -> 0.01 | F77: =$E$77*F$67*F$37 -> -7.424485649 | G77: =$E$77*G$67*G$37 -> -0.3694856492 | H77: 0.0385143508 | I77: 0.1915143508 | J77: 0.1915143508 | K77: 0 | L77: 0 | M77: 0 | N77: 0 | O77: 0 | P77: 0 | Q77: 0 | R77: 0 | S77: 0 | T77: 0 | U77: 0 | V77: 0 | W77: 0 | X77: 0 | Y77: 0 | Z77: 0 | AA77: 0 | AB77: 0 | AC77: 0 | AD77: 0 | AE77: 0 | AF77: 0 | AG77: 0 | AH77: 0 | AI77: 0
D78: Income Percent Post | E78: =1-E71 -> 0.99 | F78: =$E$78*NOT(F67)*F37 -> 0
D80: Cash Percent Pre | E80: =1-E73 -> 1 | F80: =$E80*F$5*F$67 -> 65.05143508 | G80: =$E80*G$5*G$67 -> 65.05143508 | H80: 65.05143508 | I80: 65.05143508 | J80: 65.05143508 | K80: 0 | L80: 0 | M80: 0 | N80: 0 | O80: 0 | P80: 0 | Q80: 0 | R80: 0 | S80: 0 | T80: 0 | U80: 0 | V80: 0 | W80: 0 | X80: 0 | Y80: 0 | Z80: 0 | AA80: 0 | AB80: 0 | AC80: 0 | AD80: 0 | AE80: 0 | AF80: 0 | AG80: 0 | AH80: 0 | AI80: 0
D81: Cash Percent Post | E81: =1-E74 -> 1 | F81: =$E$81*F5*NOT(F67) -> 0 | G81: =$E$81*G5*NOT(G67) -> 0 | H81: 0 | I81: 0 | J81: 0 | K81: 65.05143508 | L81: 65.05143508 | M81: 65.05143508 | N81: 65.05143508 | O81: 65.05143508 | P81: 65.05143508 | Q81: 65.05143508 | R81: 65.05143508 | S81: 65.05143508 | T81: 65.05143508 | U81: 65.05143508 | V81: 65.05143508 | W81: 65.05143508 | X81: 65.05143508 | Y81: 65.05143508 | Z81: 65.05143508 | AA81: 65.05143508 | AB81: 65.05143508 | AC81: 65.05143508 | AD81: 65.05143508 | AE81: 65.05143508 | AF81: 65.05143508 | AG81: 65.05143508 | AH81: 65.05143508 | AI81: 65.05143508
D83: ITC to Tax Investor | E83: =E70*E18 -> 371.25
D84: ITC to Sponsor | E84: =E71*E18 -> 3.75
C86: Contribution Ratio Input | E86: =Summary!D10 -> 1
C88: Contribution Ratio Used | E88: 1.359730835 | F88: Contribution
C90: Tax Invertor Investmeent | E90: =E88*E18 -> 509.8990632
C92: After Tax Cash Flow - Tax Investor | E92: =-E90+E83 -> -138.6490632 | F92: =F73+F74-(F70+F71)*$E$38 -> 154.3550566 | G92: =G73+G74-(G70+G71)*$E$38 -> 7.681606647 | H92: -0.8007133532 | I92: -3.981583353 | J92: -3.981583353 | K92: -0.1366080137 | L92: -0.1366080137 | M92: -0.1366080137 | N92: -0.1366080137 | O92: -0.1366080137 | P92: -0.1366080137 | Q92: -0.1366080137 | R92: -0.1366080137 | S92: -0.1366080137 | T92: -0.1366080137 | U92: -0.1366080137 | V92: -0.1366080137 | W92: -0.1366080137 | X92: -0.1366080137 | Y92: -0.1366080137 | Z92: -0.1366080137 | AA92: -0.1366080137 | AB92: -0.1366080137 | AC92: -0.1366080137 | AD92: -0.1366080137 | AE92: -0.1366080137 | AF92: -0.1366080137 | AG92: -0.1366080137 | AH92: -0.1366080137 | AI92: -0.1366080137
C93: IRR | E93: =IRR(E92:AI92) -> 0.113656443
C94: After-tax Discount Rate | E94: =E47 -> 0.113656443
C95: Value at Discount Rate | E95: =NPV(E94,E92:AI92) -> -5.616303186e-14 | F95: NPV 2
C98: After-tax Cash Flow - Sponsor | E98: =E45-E92 -> -486.3509368 | F98: =F45-F92 -> 66.61057707 | G98: =G45-G92 -> 65.12902707 | H98: 65.04334707 | I98: 65.01121707 | J98: 65.01121707 | K98: 51.52724173 | L98: 51.52724173 | M98: 51.52724173 | N98: 51.52724173 | O98: 51.52724173 | P98: 51.52724173 | Q98: 51.52724173 | R98: 51.52724173 | S98: 51.52724173 | T98: 51.52724173 | U98: 51.52724173 | V98: 51.52724173 | W98: 51.52724173 | X98: 51.52724173 | Y98: 51.52724173 | Z98: 51.52724173 | AA98: 51.52724173 | AB98: 51.52724173 | AC98: 51.52724173 | AD98: 51.52724173 | AE98: 51.52724173 | AF98: 51.52724173 | AG98: 51.52724173 | AH98: 51.52724173 | AI98: 51.52724173
C99: After-tax IRR | E99: =IRR(E98:AI98) -> 0.113656443
B101: ITC Transfer
C102: Cap Exp without Writup | E102: =E6 -> 1000
C103: ITC Rate | E103: =E17 -> 0.3
C104: ITC Amount | E104: =E102*E103 -> 300
C106: Pecent Paid by Investor | E106: =Summary!D8 -> 0.9
C107: ITC Realized | E107: =E104*E106 -> 270
C109: Pre-tax Cash Unleverd Cash | E109: =E7 -> -1000 | F109: =F7 -> 65.05143508 | G109: 65.05143508 | H109: 65.05143508 | I109: 65.05143508 | J109: 65.05143508 | K109: 65.05143508 | L109: 65.05143508 | M109: 65.05143508 | N109: 65.05143508 | O109: 65.05143508 | P109: 65.05143508 | Q109: 65.05143508 | R109: 65.05143508 | S109: 65.05143508 | T109: 65.05143508 | U109: 65.05143508 | V109: 65.05143508 | W109: 65.05143508 | X109: 65.05143508 | Y109: 65.05143508 | Z109: 65.05143508 | AA109: 65.05143508 | AB109: 65.05143508 | AC109: 65.05143508 | AD109: 65.05143508 | AE109: 65.05143508 | AF109: 65.05143508 | AG109: 65.05143508 | AH109: 65.05143508 | AI109: 65.05143508
C110: ITC Received | E110: =E107 -> 270
C111: Net Pre-tax Caah Flow | E111: =E109+E110 -> -730 | F111: =F109+F110 -> 65.05143508 | G111: 65.05143508 | H111: 65.05143508 | I111: 65.05143508 | J111: 65.05143508 | K111: 65.05143508 | L111: 65.05143508 | M111: 65.05143508 | N111: 65.05143508 | O111: 65.05143508 | P111: 65.05143508 | Q111: 65.05143508 | R111: 65.05143508 | S111: 65.05143508 | T111: 65.05143508 | U111: 65.05143508 | V111: 65.05143508 | W111: 65.05143508 | X111: 65.05143508 | Y111: 65.05143508 | Z111: 65.05143508 | AA111: 65.05143508 | AB111: 65.05143508 | AC111: 65.05143508 | AD111: 65.05143508 | AE111: 65.05143508 | AF111: 65.05143508 | AG111: 65.05143508 | AH111: 65.05143508 | AI111: 65.05143508
C113: IRR | E113: =IRR(E111:AI111) -> 0.08033883183
